[Event "77th Armenian Women Championship 2022"]
[Site "Yerevan"]
[Date "2022.01.19"]
[Round "8.4"]
[White "Arakelyan, Nare"]
[Black "Gevorgyan, Maria"]
[Result "0-1"]
[ECO "B34"]
[WhiteElo "1912"]
[BlackElo "2218"]
[Annotator "ChessBase"]
[PlyCount "58"]
[EventDate "2022.01.12"]
[EventType "tourn"]
[EventCountry "ARM"]
[SourceTitle "playchess.com"]
[Source "ChessBase"]
[SourceQuality "1"]
[TimeControl "40/5400+30:1800+30"]

1. e4 {[%emt 0:00:29]} c5 {[%emt 0:00:06]} 2. Nf3 {[%emt 0:00:28]} Nc6 {[%emt 0:00:06]} 3. d4 {[%emt 0:00:15]} cxd4 {[%emt 0:00:05]} 4. Nxd4 {[%emt 0:00:06]} g6 {[%emt 0:00:05]} 5. Nc3 {[%emt 0:00:36]} Bg7 {[%emt 0:00:06]} 6. Be3 {[%emt 0:00:04]} Nf6 {[%emt 0:00:05]} 7. Nxc6 {[%emt 0:00:30]} bxc6 {[%emt 0:00:05]} 8. e5 {[%emt 0:00:03]} Ng8 {[%emt 0:00:05]} 9. Bd4 {[%emt 0:00:09]} Qa5 {[%emt 0:00:30]} 10. f4 {[%emt 0:04:26]} Nh6 {[%emt 0:07:49]} 11. e6 {[%emt 0:03:00]} O-O {[%emt 0:04:11]} 12. Bxg7 {[%emt 0:04:21]} Kxg7 {[%emt 0:00:12]} 13. exd7 {[%emt 0:00:04]} Rd8 {[%emt 0:35:15]} 14. Qd4+ {[%emt 0:00:16]} e5 {[%emt 0:06:57]} 15. fxe5 {[%emt 0:03:51]} Rxd7 {[%emt 0:00:36]} 16. Qf4 {[%emt 0:01:22]} Nf5 {[%emt 0:05:32]} 17. Rd1 {[%emt 0:06:26]} Rb8 {[%emt 0:12:22]} 18. Rxd7 {[%emt 0:11:45]} Bxd7 {[%emt 0:00:13]} 19. g4 {[%emt 0:00:23]} Rxb2 {[%emt 0:01:17]} 20. Kd2 {[%emt 0:01:00]} Rb4 {[%emt 0:08:20]} 21. Qf3 {[%emt 0:05:30]} Nd4 {[%emt 0:00:11]} 22. Qf6+ {[%emt 0:00:09]} Kg8 {[%emt 0:00:02]} 23. h3 {[%emt 0:02:59]} Ne6 {[%emt 0:04:00]} 24. Bd3 {[%emt 0:07:56]} Rf4 {[%emt 0:00:10]} 25. Qe7 {[%emt 0:00:34]} Qxe5 {[%emt 0:00:11]} 26. Rb1 Rf2+ {[%emt 0:01:20]} 27. Ne2 {[%emt 0:26:53]} Qf4+ {[%emt 0:00:20]} 28. Kc3 {[%emt 0:00:34]} Rxe2 {[%emt 0:01:49]} 29. Qxd7 {[%emt 0:01:12]} Qd2+ {[%emt 0:00:58]} 0-1

[Event "77th Armenian Women Championship 2022"]
[Site "Yerevan"]
[Date "2022.01.19"]
[Round "8.5"]
[White "Gasparian, Narine"]
[Black "Hakobyan, Astghik"]
[Result "1/2-1/2"]
[ECO "E06"]
[WhiteElo "2004"]
[BlackElo "2053"]
[Annotator "ChessBase"]
[PlyCount "95"]
[EventDate "2022.01.12"]
[EventType "tourn"]
[EventCountry "ARM"]
[SourceTitle "playchess.com"]
[Source "ChessBase"]
[SourceQuality "1"]
[TimeControl "40/5400+30:1800+30"]

1. d4 {[%emt 0:00:30]} Nf6 {[%emt 0:00:09]} 2. Nf3 {[%emt 0:00:08]} e6 {[%emt 0:00:23]} 3. g3 {[%emt 0:00:19]} d5 {[%emt 0:01:22]} 4. c4 {[%emt 0:00:07]} Be7 {[%emt 0:02:55]} 5. Bg2 {[%emt 0:00:11]} O-O {[%emt 0:00:11]} 6. O-O {[%emt 0:00:29]} c6 {[%emt 0:00:43]} 7. Nbd2 {[%emt 0:00:19]} Nbd7 {[%emt 0:00:19]} 8. b3 {[%emt 0:00:20]} b6 {[%emt 0:00:33]} 9. Bb2 {[%emt 0:00:10]} Ba6 {[%emt 0:00:28]} 10. Re1 {[%emt 0:07:01]} c5 {[%emt 0:04:49]} 11. cxd5 {[%emt 0:00:20]} exd5 {[%emt 0:05:34]} 12. Ne5 {[%emt 0:01:03]} Rc8 {[%emt 0:11:57]} 13. Rc1 {[%emt 0:01:43]} Nxe5 {[%emt 0:08:26]} 14. dxe5 {[%emt 0:00:10]} Ne8 {[%emt 0:01:02]} 15. Nf1 {[%emt 0:04:17]} d4 {[%emt 0:01:26]} 16. e3 {[%emt 0:01:45]} d3 {[%emt 0:06:46]} 17. Nd2 {[%emt 0:02:46]} b5 {[%emt 0:05:20]} 18. Qg4 {[%emt 0:05:58]} Qa5 {[%emt 0:04:43]} 19. Red1 {[%emt 0:02:32]} c4 {[%emt 0:15:07]} 20. bxc4 {[%emt 0:03:24]} bxc4 {[%emt 0:02:55]} 21. Bc3 {[%emt 0:02:12]} Bb4 {[%emt 0:02:47]} 22. Bxb4 {[%emt 0:03:53]} Qxb4 {[%emt 0:00:05]} 23. Bd5 {[%emt 0:03:15]} Nc7 {[%emt 0:07:47]} 24. Bxc4 {[%emt 0:06:59]} Nd5 {[%emt 0:06:17]} 25. Qd4 {[%emt 0:05:08]} Rfd8 {[%emt 0:00:27]} 26. Bxa6 {[%emt 0:20:12]} Rxc1 {[%emt 0:01:31]} 27. Rxc1 {[%emt 0:00:06]} Qxd2 {[%emt 0:00:18]} 28. Rc5 {[%emt 0:01:53]} Qe1+ {[%emt 0:09:12]} 29. Kg2 {[%emt 0:00:06]} Nxe3+ {[%emt 0:00:54]} 30. Qxe3 {[%emt 0:02:57]} d2 {[%emt 0:00:12]} 31. Be2 {[%emt 0:00:09]} d1=Q {[%emt 0:00:51]} 32. Bxd1 {[%emt 0:00:16]} Qxd1 {[%emt 0:00:04]} 33. Rc7 {[%emt 0:03:17]} Qd5+ {[%emt 0:00:43]} 34. Qf3 {[%emt 0:00:18]} Qxa2 {[%emt 0:00:33]} 35. Qb7 {[%emt 0:02:01]} h6 {[%emt 0:00:35]} 36. Re7 {[%emt 0:10:05]} Qd5+ {[%emt 0:00:30]} 37. Qxd5 {[%emt 0:00:09]} Rxd5 {[%emt 0:00:03]} 38. f4 {[%emt 0:01:42]} a5 {[%emt 0:00:24]} 39. Re8+ {[%emt 0:01:09]} Kh7 {[%emt 0:00:06]} 40. Rf8 {[%emt 0:00:00]} Kg6 {[%emt 0:00:00]} 41. g4 {[%emt 0:01:19]} a4 {[%emt 0:06:29]} 42. f5+ {[%emt 0:03:32]} Kg5 {[%emt 0:05:52]} 43. Rxf7 {[%emt 0:01:53]} Kxg4 {[%emt 0:01:16]} 44. e6 {[%emt 0:06:21]} Re5 {[%emt 0:06:25]} 45. Rxg7+ {[%emt 0:04:29]} Kxf5 {[%emt 0:00:14]} 46. Ra7 {[%emt 0:00:08]} Rxe6 {[%emt 0:01:43]} 47. Rxa4 {[%emt 0:00:06]} Re2+ {[%emt 0:00:42]} 48. Kg3 {[%emt 0:00:08]} 1/2-1/2